fUSD/lending_fUSD_20251204
["ID","MTS","AMOUNT","RATE_DAILY","PERIOD"]
[396225647,1764839441936,-586.91483657,0.00016999,2]
[396225648,1764839441945,-586.91483657,0.00016999,2]
[396225649,1764839441954,-586.91483657,0.00016999,2]
[396225650,1764839441964,-586.91483657,0.00016999,2]
[396225651,1764839441973,-586.91483657,0.00016999,2]
[396225652,1764839441983,-586.91483657,0.00016999,2]
[396225653,1764839441993,-586.91483657,0.00016999,2]
[396225654,1764839442002,-586.91483657,0.00016999,2]
[396225655,1764839442012,-586.91483657,0.00016999,2]
[396225656,1764839442022,-586.91483657,0.00016999,2]
[396225657,1764839442031,-586.91483657,0.00016999,2]
[396225658,1764839442040,-586.91483657,0.00016999,2]
[396225659,1764839442050,-586.91483657,0.00016999,2]
[396225660,1764839442061,-586.91483657,0.00016999,2]
[396225661,1764839442072,-586.91483657,0.00016999,2]
[396225662,1764839442081,-586.91483657,0.00016999,2]
[396225663,1764839442091,-586.91483657,0.00016999,2]
[396225664,1764839442101,-586.91483657,0.00016999,2]
[396225665,1764839442111,-586.91483657,0.00016999,2]
[396225666,1764839442122,-586.91483657,0.00016999,2]
[396225667,1764839442131,-586.91483657,0.00016999,2]
[396225668,1764839442142,-586.91483657,0.00016999,2]
[396225669,1764839442151,-586.91483657,0.00016999,2]
[396225670,1764839442161,-586.91483657,0.00016999,2]
[396225671,1764839442170,-586.91483657,0.00016999,2]
[396225672,1764839442179,-586.91483657,0.00016999,2]
[396225673,1764839442189,-586.91483657,0.00016999,2]
[396225674,1764839442198,-586.91483657,0.00016999,2]
[396225675,1764839442207,-586.91483657,0.00016999,2]
[396225676,1764839442218,-586.91483657,0.00016999,2]
[396225677,1764839442227,-586.91483657,0.00016999,2]
[396225678,1764839442236,-586.91483657,0.00016999,2]
[396225679,1764839442245,-586.91483657,0.00016999,2]
[396225680,1764839442263,-586.91483657,0.00016999,2]
[396225681,1764839442272,-586.91483657,0.00016999,2]
[396225682,1764839442282,-586.91483657,0.00016999,2]
[396225683,1764839442291,-586.91483657,0.00016999,2]
[396225684,1764839442300,-1534.35772491,0.00016999,2]
[396225685,1764839442309,-1534.35772491,0.00016999,2]
[396225686,1764839442319,-1534.35772491,0.00016999,2]
[396225687,1764839442329,-1534.35772491,0.00016999,2]
[396225688,1764839442338,-1534.35772491,0.00016999,2]
[396225690,1764839442347,-1534.35772491,0.00016999,2]
[396225692,1764839442356,-1534.35772491,0.00016999,2]
[396225693,1764839442365,-1534.35772491,0.00016999,2]
[396225694,1764839442375,-1534.35772491,0.00016999,2]
[396225695,1764839442383,-1534.35772491,0.00016999,2]
[396225696,1764839442392,-1534.35772491,0.00016999,2]
[396225697,1764839442401,-1534.35772491,0.00016999,2]
[396225698,1764839442410,-1534.35772491,0.00016999,2]
[396225699,1764839442419,-1534.35772491,0.00016999,2]
[396225700,1764839442428,-1534.35772491,0.00016999,2]
[396225701,1764839442437,-1534.35772491,0.00016999,2]
[396225702,1764839442446,-1534.35772491,0.00016999,2]
[396225703,1764839442455,-1534.35772491,0.00016999,2]
[396225704,1764839442465,-1534.35772491,0.00016999,2]
[396225705,1764839442474,-1534.35772491,0.00016999,2]
[396225706,1764839442483,-1534.35772491,0.00016999,2]
[396225707,1764839442492,-1534.35772491,0.00016999,2]
[396225708,1764839442502,-1534.35772491,0.00016999,2]
[396225709,1764839442511,-11616.0,0.00017,2]
[396225710,1764839442520,-1227284.9862515,0.00017,2]
[396225711,1764839442529,-1000.0,0.00017,2]
[396225712,1764839442538,-1000.0,0.00017,2]
[396225713,1764839442547,-1000.0,0.00017,2]
[396225715,1764839442556,-1000.0,0.00017,2]
[396225717,1764839442566,-1000.0,0.00017,2]
[396225718,1764839442575,-1000.0,0.00017,2]
[396225719,1764839442584,-1000.0,0.00017,2]
[396225720,1764839442593,-1000.0,0.00017,2]
[396225721,1764839442603,-1000.0,0.00017,2]
[396225722,1764839442612,-1000.0,0.00017,2]
[396225723,1764839442622,-1000.0,0.00017,2]
[396225724,1764839442632,-1000.0,0.00017,2]
[396225725,1764839442642,-1000.0,0.00017,2]
[396225726,1764839442651,-1000.0,0.00017,2]
[396225727,1764839442661,-1000.0,0.00017,2]
[396225728,1764839442670,-1000.0,0.00017,2]
[396225729,1764839442679,-1000.0,0.00017,2]
[396225730,1764839442688,-1000.0,0.00017,2]
[396225731,1764839442698,-1000.0,0.00017,2]
[396225732,1764839442707,-1000.0,0.00017,2]
[396225733,1764839442719,-1000.0,0.00017,2]
[396225734,1764839442729,-1000.0,0.00017,2]
[396225735,1764839442738,-1000.0,0.00017,2]
[396225736,1764839442747,-1000.0,0.00017,2]
[396225737,1764839442756,-1000.0,0.00017,2]
[396225738,1764839442765,-1000.0,0.00017,2]
[396225739,1764839442774,-1000.0,0.00017,2]
[396225740,1764839442783,-1017.86356618,0.00017,2]
[396225741,1764839442792,-2000.0,0.00017,2]
[396225742,1764839442801,-306462.160522,0.00017,2]
[396225743,1764839442810,-3255.6317906,0.00017,2]
[396225744,1764839442819,-41939.502125,0.00017,2]
[396225745,1764839442829,-780.257,0.00017,2]
[396225746,1764839442838,-1000.0,0.00017,2]
[396225747,1764839442847,-1000.0,0.00017,2]
[396225748,1764839442857,-250.0,0.00017,2]
[396225749,1764839442867,-151.0,0.00017,2]
[396225750,1764839442876,-151.0,0.00017,2]
[396225751,1764839442885,-151.0,0.00017,2]
[396225752,1764839442895,-151.0,0.00017,2]
[396225753,1764839442904,-250.0,0.00017,2]
[396225754,1764839442914,-250.0,0.00017,2]
[396225755,1764839442923,-250.0,0.00017,2]
[396225756,1764839442933,-250.0,0.00017,2]
[396225757,1764839442942,-250.0,0.00017,2]
[396225758,1764839442953,-250.0,0.00017,2]
[396225759,1764839442964,-250.0,0.00017,2]
[396225760,1764839442973,-250.0,0.00017,2]
[396225761,1764839442983,-250.0,0.00017,2]
[396225762,1764839442993,-250.0,0.00017,2]
[396225763,1764839443003,-250.0,0.00017,2]
[396225764,1764839443012,-250.0,0.00017,2]
[396225765,1764839443021,-250.0,0.00017,2]
[396225766,1764839443031,-250.0,0.00017,2]
[396225767,1764839443041,-250.0,0.00017,2]
[396225768,1764839443051,-250.0,0.00017,2]
[396225769,1764839443060,-250.0,0.00017,2]
[396225770,1764839443072,-250.0,0.00017,2]
[396225771,1764839443081,-250.0,0.00017,2]
[396225772,1764839443091,-250.0,0.00017,2]
[396225773,1764839443101,-250.0,0.00017,2]
[396225774,1764839443110,-250.0,0.00017,2]
[396225775,1764839443119,-250.0,0.00017,2]
[396225776,1764839443128,-250.0,0.00017,2]
[396225777,1764839443139,-250.0,0.00017,2]
[396225778,1764839443148,-250.0,0.00017,2]
[396225779,1764839443157,-250.0,0.00017,2]
[396225780,1764839443166,-250.0,0.00017,2]
[396225781,1764839443175,-250.0,0.00017,2]
[396225782,1764839443185,-250.0,0.00017,2]
[396225783,1764839443194,-250.0,0.00017,2]
[396225784,1764839443204,-250.0,0.00017,2]
[396225785,1764839443214,-250.0,0.00017,2]
[396225786,1764839443224,-250.0,0.00017,2]
[396225787,1764839443233,-250.0,0.00017,2]
[396225788,1764839443243,-250.0,0.00017,2]
[396225789,1764839443252,-250.0,0.00017,2]
[396225790,1764839443261,-250.0,0.00017,2]
[396225791,1764839443275,-382.3,0.00017,2]
[396225792,1764839443284,-153.0,0.00017,2]
[396225793,1764839443293,-300.0,0.00017013,2]
[396225794,1764839443303,-152.857964,0.00017014,2]
[396225795,1764839443312,-67036.43073382,0.00017014,2]
[396225796,1764839443321,-2739.0,0.00017023,2]
[396225797,1764839443331,-2095.0,0.0001704,2]
[396225798,1764839443340,-537.6845,0.00017041,2]
[396225799,1764839443350,-2095.0,0.00017055,2]
[396225800,1764839443359,-2095.0,0.00017076,2]
[396225801,1764839443369,-4995.0,0.00017088,2]
[396225802,1764839443379,-226.57499665,0.00017088,2]
[396225803,1764839443388,-557.5788265,0.00017096,2]
[396225804,1764839443398,-2095.0,0.00017097,2]
[396225805,1764839443408,-2739.0,0.00017115,2]
[396225806,1764839443417,-150.0,0.00017127,2]
[396225807,1764839443426,-500.0,0.00017127,2]
[396225808,1764839443436,-203.85379449,0.00017127,2]
[396225809,1764839443446,-150.0,0.00017127,2]
[396225810,1764839443455,-150.0,0.00017127,2]
[396225811,1764839443465,-150.0,0.00017127,2]
[396225812,1764839443474,-150.0,0.00017127,2]
[396225813,1764839443483,-541.50339191,0.00017127,2]
[396225814,1764839443492,-500.0,0.00017127,2]
[396225815,1764839443501,-150.0,0.00017127,2]
[396225816,1764839443510,-500.0,0.00017127,2]
[396225817,1764839443519,-500.0,0.00017127,2]
[396225818,1764839443528,-360.30255927,0.00017127,2]
[396225819,1764839443537,-150.0,0.00017127,2]
[396225820,1764839443546,-500.0,0.00017127,2]
[396225821,1764839443555,-500.0,0.00017127,2]
[396225822,1764839443564,-150.0,0.00017127,2]
[396225823,1764839443573,-150.0,0.00017127,2]
[396225824,1764839443582,-500.0,0.00017127,2]
[396225825,1764839443590,-500.0,0.00017127,2]
[396225826,1764839443599,-150.0,0.00017127,2]
[396225827,1764839443608,-150.0,0.00017127,2]
[396225828,1764839443616,-2095.0,0.00017142,2]
[396225829,1764839443626,-441.38890768,0.00017151,2]
[396225830,1764839443635,-2095.0,0.00017159,2]
[396225831,1764839443644,-150.34,0.00017186,2]
[396225832,1764839443653,-150.0,0.0001719,2]
[396225833,1764839443662,-2739.0,0.00017206,2]
[396225834,1764839443671,-2739.0,0.00017214,2]
[396225835,1764839443680,-2350.0,0.00017242,2]
[396225836,1764839443691,-200.0,0.00017264,2]
[396225837,1764839443700,-500.0,0.00017264,2]
[396225838,1764839443710,-150.0,0.00017264,2]
[396225839,1764839443719,-150.0,0.00017264,2]
[396225840,1764839443728,-500.0,0.00017264,2]
[396225841,1764839443737,-150.0,0.00017264,2]
[396225842,1764839443746,-500.0,0.00017264,2]
[396225843,1764839443756,-500.0,0.00017264,2]
[396225844,1764839443765,-150.0,0.00017264,2]
[396225845,1764839443774,-500.0,0.00017264,2]
[396225846,1764839443783,-578.94802614,0.00017264,2]
[396225847,1764839443792,-150.0,0.00017264,2]
[396225848,1764839443802,-171.06590032,0.00017264,2]
[396225849,1764839443811,-460.60034226,0.00017264,2]
[396225850,1764839443821,-500.0,0.00017264,2]
[396225851,1764839443830,-150.0,0.00017264,2]
[396225852,1764839443839,-150.0,0.00017264,2]
[396225853,1764839443848,-166.66,0.00017292,2]
[396225854,1764839443857,-621.64,0.00017296,2]
[396225855,1764839443867,-2739.0,0.00017302,2]
[396225856,1764839443876,-2739.0,0.00017319,2]
[396225857,1764839443885,-420.0,0.00017323,2]
[396225858,1764839443895,-2739.0,0.00017329,2]
[396225859,1764839443904,-1371.0,0.0001733,2]
[396225860,1764839443914,-1371.0,0.00017338,2]
[396225861,1764839443922,-1371.0,0.00017376,2]
[396225862,1764839443932,-47189.0,0.00017377,2]
[396225863,1764839443941,-500.0,0.00017401,2]
[396225864,1764839443951,-254.96262586,0.00017401,2]
[396225865,1764839443960,-265.01712022,0.00017401,2]
[396225866,1764839443970,-500.0,0.00017401,2]
[396225867,1764839443979,-152.02518252,0.00017401,2]
[396225868,1764839443988,-500.0,0.00017401,2]
[396225869,1764839443998,-500.0,0.00017401,2]
[396225870,1764839444007,-150.0,0.00017401,2]
[396225871,1764839444017,-500.0,0.00017401,2]
[396225872,1764839444026,-500.0,0.00017401,2]
[396225873,1764839444036,-150.0,0.00017401,2]
[396225874,1764839444046,-219.99695734,0.00017401,2]
[396225875,1764839444057,-1680.0,0.0001741,2]
[396225876,1764839444071,-2739.0,0.00017425,2]
[396225877,1764839444080,-595.37131296,0.00017438,2]
[396225878,1764839444089,-151.0,0.00017438,2]
[396225879,1764839444099,-151.0,0.00017438,2]
[396225880,1764839444109,-1127.69,0.00017438,2]
[396225881,1764839444118,-2739.0,0.00017452,2]
[396225882,1764839444127,-311.1,0.00017515,2]
[396225883,1764839444138,-322.6107,0.00017515,2]
[396225884,1764839444148,-287.61899177,0.00017515,2]
[396225885,1764839444157,-500.0,0.00017538,2]
[396225886,1764839444167,-500.0,0.00017538,2]
[396225887,1764839444176,-297.80864712,0.00017538,2]
[396225888,1764839444186,-366.23798276,0.00017538,2]
[396225889,1764839444195,-195.49167691,0.00017538,2]
[396225890,1764839444204,-257.5468066,0.00017538,2]
[396225891,1764839444213,-500.0,0.00017538,2]
[396225892,1764839444222,-150.0,0.00017538,2]
[396225893,1764839444232,-2739.0,0.00017673,2]
[396225894,1764839444243,-510.31429567,0.00017675,2]
[396225895,1764839444255,-500.0,0.00017675,2]
[396225896,1764839444265,-500.0,0.00017675,2]
[396225897,1764839444274,-173.56700146,0.00017675,2]
[396225898,1764839444284,-2739.0,0.0001769,2]
[396225899,1764839444296,-1127.69,0.00017712,2]
[396225900,1764839444305,-2739.0,0.00017725,2]
[396225901,1764839444315,-2350.0,0.0001779,2]
[396225902,1764839444324,-150.0,0.00017808,2]
[396225903,1764839444333,-500.0,0.00017812,2]
[396225904,1764839444343,-523.85614202,0.00017812,2]
[396225905,1764839444352,-736.57,0.00017837,2]
[396225906,1764839444511,-1371.0,0.00017915,2]
[396225907,1764839444521,-150.0,0.00017945,2]
[396225908,1764839444530,-500.0,0.00017949,2]
[396225909,1764839444539,-189.51838586,0.0001796,2]
[396225910,1764839444549,-166.66,0.00017977,2]
[396225911,1764839444558,-617.40005154,0.00017986,2]
[396225912,1764839444567,-301.67163023,0.00017986,2]
[396225913,1764839444577,-151.0,0.00017986,2]
[396225914,1764839444586,-1127.69,0.00017986,2]
[396225915,1764839444596,-300.0,0.00017999,2]
[396225916,1764839444605,-887.27272926,0.00018,2]
[396225917,1764839444615,-1183.49453852,0.00018,2]
[396225918,1764839444624,-68957.98581717,0.00018,2]
[396225919,1764839444634,-150.34,0.00018045,2]
[396225920,1764839444643,-150.0,0.00018082,2]
[396225921,1764839444652,-1000.0,0.00018082,2]
[396225922,1764839444662,-1769.01601649,0.000181,2]
[396225923,1764839444671,-150.0,0.00018219,2]
[396225924,1764839444681,-1127.69,0.0001826,2]
[396225925,1764839444690,-2350.0,0.00018338,2]
[396225926,1764839444699,-150.0,0.00018356,2]
[396225927,1764839444709,-87966.54,0.00018356,2]
[396225928,1764839444719,-150.17113883,0.00018373,2]
[396225929,1764839444729,-4911.29924807,0.00018478,2]
[396225930,1764839444739,-229.59889414,0.00018493,2]
[396225931,1764839444749,-640.24385345,0.00018534,2]
[396225932,1764839444758,-151.0,0.00018534,2]
[396225933,1764839444768,-1127.69,0.00018534,2]
[396225934,1764839444777,-2832.3444381,0.00018566,2]
[396225935,1764839444787,-1000.0,0.000186,2]
[396225936,1764839444798,-166.66,0.00018662,2]
[396225937,1764839444807,-621.64,0.00018665,2]
[396225938,1764839444816,-1000.0,0.0001876,2]
[396225939,1764839444826,-150.8,0.000188,2]
[396225940,1764839444835,-150.8,0.000188,2]
[396225941,1764839444844,-150.8,0.000188,2]
[396225942,1764839444854,-150.8,0.000188,2]
[396225943,1764839444864,-150.8,0.000188,2]
[396225944,1764839444873,-150.8,0.000188,2]
[396225945,1764839444882,-150.8,0.000188,2]
[396225946,1764839444891,-150.8,0.000188,2]
[396225947,1764839444900,-150.8,0.000188,2]
[396225948,1764839444910,-150.8,0.000188,2]
[396225949,1764839444919,-150.8,0.000188,2]
[396225950,1764839444929,-150.8,0.000188,2]
[396225951,1764839444939,-1127.75226699,0.00018808,2]
[396225952,1764839444949,-322.6107,0.00018884,2]
[396225953,1764839444959,-334.5472959,0.00018884,2]
[396225954,1764839444969,-298.26089446,0.00018884,2]
[396225955,1764839444979,-2350.0,0.00018886,2]
[396225956,1764839444989,-150.34,0.00018904,2]
[396225957,1764839444999,-480.06109419,0.00018925,2]
[396225958,1764839445009,-514.0,0.00018943,2]
[396225959,1764839445019,-500.0,0.00019,2]
[396225960,1764839445029,-500.0,0.00019,4]
[396225961,1764839445039,-5139.59421298,0.00019,2]
[396225962,1764839445049,-35296.99462278,0.00019,2]
[396225963,1764839445061,-532.00094569,0.00019,2]
[396225964,1764839445074,-1342.17501925,0.00019,2]
[396225965,1764839445084,-300.0,0.00019,2]
[396225966,1764839445093,-6521.0,0.00019,2]
[396225967,1764839445103,-10000.0,0.00019078,2]
[396225968,1764839445114,-663.93287602,0.00019082,2]
[396225969,1764839445124,-151.0,0.00019082,2]
[396225970,1764839445134,-220.75311086,0.00019082,2]
[396225971,1764839445145,-5800.0,0.00019127,2]
[396225972,1764839445155,-2099.0,0.00019134,2]
[396225973,1764839445164,-5800.0,0.00019136,2]
[396225974,1764839445174,-5800.0,0.00019144,2]
[396225975,1764839445184,-5800.0,0.00019153,2]
[396225976,1764839445194,-5800.0,0.00019161,2]
[396225977,1764839445204,-150.8,0.00019168,2]
[396225978,1764839445213,-5800.0,0.0001917,2]
[396225979,1764839445223,-300.0,0.00019177,2]
[396225980,1764839445233,-5800.0,0.00019178,2]
[396225981,1764839445243,-705.43,0.00019178,2]
[396225982,1764839445252,-705.43,0.00019178,2]
[396225983,1764839445262,-705.43,0.00019178,2]
[396225984,1764839445271,-705.43,0.00019178,2]
[396225985,1764839445281,-705.43,0.00019178,2]
[396225986,1764839445291,-705.43,0.00019178,2]
[396225987,1764839445301,-705.43,0.00019178,2]
[396225988,1764839445311,-705.43,0.00019178,2]
[396225989,1764839445321,-705.43,0.00019178,2]
[396225990,1764839445330,-705.43,0.00019178,2]
[396225991,1764839445340,-705.43,0.00019178,2]
[396225992,1764839445350,-705.43,0.00019178,2]
[396225993,1764839445360,-705.43,0.00019178,2]
[396225994,1764839445369,-3008.5532171,0.00019178,2]
[396225995,1764839445379,-151.0,0.00019178,2]
[396225996,1764839445389,-20032.75,0.00019178,2]
[396225997,1764839445399,-153.721708,0.00019178,2]
[396225998,1764839445408,-151.0,0.00019178,2]
[396225999,1764839445418,-177.801643,0.00019178,2]
[396226000,1764839445427,-161.191286,0.00019178,2]
[396226001,1764839445437,-151.0,0.00019178,2]
[396226002,1764839445446,-151.0,0.00019178,2]
[396226003,1764839445455,-151.0,0.00019178,2]
[396226004,1764839445465,-151.0,0.00019178,2]
[396226005,1764839445474,-240.410375,0.00019178,2]
[396226006,1764839445484,-195.183644,0.00019178,2]
[396226007,1764839445493,-250.318239,0.00019178,2]
[396226008,1764839445502,-250.318239,0.00019178,2]
[396226009,1764839445512,-250.318239,0.00019178,2]
[396226010,1764839445521,-250.318239,0.00019178,2]
[396226011,1764839445530,-250.318239,0.00019178,2]
[396226012,1764839445540,-250.318239,0.00019178,2]
[396226013,1764839445550,-250.318239,0.00019178,2]
[396226014,1764839445560,-250.318239,0.00019178,2]
[396226015,1764839445569,-191.908777,0.00019178,2]
[396226016,1764839445579,-191.908777,0.00019178,2]
[396226017,1764839445588,-191.908777,0.00019178,2]
[396226018,1764839445598,-191.908777,0.00019178,2]
[396226019,1764839445607,-191.908777,0.00019178,2]
[396226020,1764839445618,-191.908777,0.00019178,2]
[396226021,1764839445627,-191.908777,0.00019178,2]
[396226022,1764839445636,-191.908777,0.00019178,2]
[396226023,1764839445646,-151.0,0.00019178,2]
[396226024,1764839445656,-151.0,0.00019178,2]
[396226025,1764839445665,-151.0,0.00019178,2]
[396226026,1764839445675,-151.0,0.00019178,2]
[396226027,1764839445684,-151.0,0.00019178,2]
[396226028,1764839445693,-151.0,0.00019178,2]
[396226029,1764839445702,-151.0,0.00019178,2]
[396226030,1764839445711,-151.0,0.00019178,2]
[396226031,1764839445722,-151.0,0.00019178,2]
[396226032,1764839445731,-151.0,0.00019178,2]
[396226033,1764839445741,-151.894211,0.00019178,2]
[396226034,1764839445751,-151.60176,0.00019178,2]
[396226035,1764839445760,-151.0,0.00019178,2]
[396226036,1764839445769,-151.0,0.00019178,2]
[396226037,1764839445779,-151.0,0.00019178,2]
[396226038,1764839445787,-151.0,0.00019178,2]
[396226039,1764839445797,-151.0,0.00019178,2]
[396226040,1764839445806,-151.0,0.00019178,2]
[396226041,1764839445815,-385.286627,0.00019178,2]
[396226042,1764839445825,-385.286627,0.00019178,2]
[396226043,1764839445834,-385.286627,0.00019178,2]
[396226044,1764839445842,-385.286627,0.00019178,2]
[396226045,1764839445851,-385.286627,0.00019178,2]
[396226046,1764839445861,-385.286627,0.00019178,2]
[396226047,1764839445871,-385.286627,0.00019178,2]
[396226048,1764839445879,-385.286627,0.00019178,2]
[396226049,1764839445888,-16542.9911863,0.00019185,2]
[396226050,1764839445898,-68380.9509567,0.00019186,2]
[396226051,1764839445907,-9357.9678256,0.00019186,2]
[396226052,1764839445916,-562.05,0.00019198,2]
[396226053,1764839445926,-5524.0,0.000193,3]
[396226054,1764839445935,-166.66,0.00019347,2]
[396226056,1764839445944,-2350.0,0.00019434,2]
[396226057,1764839445953,-307.88,0.00019436,2]
[396226058,1764839445963,-1000.0,0.00019438,2]
[396226059,1764839445974,-5524.0,0.000196,5]
[396226060,1764839445984,-348.16,0.00019601,2]
[396226061,1764839445993,-250.08,0.0001962,2]
[396226062,1764839446003,-157.75281607,0.00019622,2]
[396226063,1764839446012,-151.0,0.00019629,2]
[396226064,1764839446021,-688.49839244,0.0001963,2]
[396226065,1764839446030,-151.0,0.0001963,2]
[396226066,1764839446039,-162.0883625,0.00019637,2]
[396226068,1764839446048,-232.08,0.0001965,2]
[396226070,1764839446058,-166.68,0.00019652,2]
[396226072,1764839446072,-3691.2402727,0.00019672,2]
[396226073,1764839446081,-15257.852538,0.00019674,2]
[396226074,1764839446091,-2088.0448596,0.00019674,2]
[396226075,1764839446101,-307.89,0.0001971,2]
[396226076,1764839446111,-156.587,0.00019726,2]
[396226077,1764839446120,-150.34,0.00019764,2]
[396226078,1764839446129,-613.724,0.00019771,2]
[396226079,1764839446139,-656.445,0.00019771,2]
[396226080,1764839446150,-1259.0,0.00019771,2]
[396226081,1764839446159,-909.0,0.00019771,2]
[396226082,1764839446168,-1194.0,0.00019771,2]
[396226083,1764839446177,-199.539,0.00019771,2]
[396226084,1764839446187,-318.211,0.00019771,2]
[396226085,1764839446196,-4706.0,0.00019771,2]
[396226086,1764839446206,-6527.088,0.00019771,2]
[396226087,1764839446215,-8729.8867208,0.00019776,2]
[396226088,1764839446224,-736.57,0.00019819,2]
[396226089,1764839446234,-348.16,0.00019875,2]
[396226090,1764839446243,-4550.6136345,0.000199,3]
[396226091,1764839446252,-500.0,0.000199,3]
[396226092,1764839446261,-150.0,0.00019949,2]
[396226093,1764839446271,-200.0,0.00019949,2]
[396226094,1764839446280,-200.0,0.00019949,2]
[396226095,1764839446290,-152.0,0.00019949,2]
[396226096,1764839446299,-150.118,0.00019949,2]
[396226097,1764839446308,-150.145,0.00019949,2]
[396226098,1764839446318,-162.895,0.00019949,2]
[396226099,1764839446327,-150.0,0.00019949,2]
[396226100,1764839446336,-150.0,0.00019949,2]
[396226101,1764839446346,-1609.562,0.00019949,2]
[396226102,1764839446357,-1322.0,0.00019949,2]
[396226103,1764839446366,-3444.0,0.00019949,2]
[396226104,1764839446375,-1000.0,0.0001997,2]
[396226105,1764839446384,-886.15932184,0.0001997,2]
[396226106,1764839446394,-151.29932748,0.00019973,2]
[396226107,1764839446403,-2350.0,0.00019982,2]
[396226108,1764839446413,-705.43,0.00019999,2]
[396226109,1764839446422,-578.77667957,0.00019999,2]
[396226110,1764839446432,-10862.67530809,0.0002,2]
[396226111,1764839446441,-771.329196,0.0002,2]
[396226112,1764839446450,-3950.0,0.0002,2]
[396226113,1764839446459,-73607.70844627,0.0002,2]
[396226114,1764839446470,-7251.90251763,0.0002,2]
[396226115,1764839446479,-1287.78072263,0.0002,2]
[396226116,1764839446488,-1039.45352697,0.0002,2]
[396226117,1764839446498,-2848.52996633,0.0002,2]
[396226118,1764839446507,-12857.70282579,0.0002,2]
[396226119,1764839446516,-414.54289206,0.0002,2]
[396226120,1764839446526,-172.95,0.0002,2]
[396226121,1764839446536,-2405.59017131,0.0002,2]
[396226122,1764839446545,-873.75585722,0.0002,3]
[396226123,1764839446554,-191.263587,0.0002,2]
[396226124,1764839446563,-150.0,0.0002,2]
[396226125,1764839446573,-150.0,0.0002,2]
[396226126,1764839446583,-205.27,0.0002,2]
[396226127,1764839446592,-8720.0,0.0002001,2]
[396226128,1764839446601,-1000.0,0.00020116,2]
[396226129,1764839446610,-151.0,0.00020145,2]
[396226130,1764839446619,-151.0,0.00020145,2]
[396226131,1764839446628,-151.0,0.00020145,2]
[396226132,1764839446638,-151.0,0.00020145,2]
[396226133,1764839446647,-151.0,0.00020145,2]
[396226134,1764839446656,-151.0,0.00020145,2]
[396226135,1764839446665,-151.0,0.00020145,2]
[396226136,1764839446675,-156.891547,0.00020145,2]
[396226137,1764839446684,-385.286627,0.00020145,2]
[396226138,1764839446692,-385.286627,0.00020145,2]
[396226139,1764839446701,-385.286627,0.00020145,2]
[396226140,1764839446710,-385.286627,0.00020145,2]
[396226141,1764839446720,-1638.44,0.00020145,2]
[396226142,1764839446729,-1458.41,0.00020145,2]
[396226143,1764839446738,-999.99,0.00020145,2]
[396226144,1764839446747,-22843.75,0.00020145,2]
[396226145,1764839446758,-1629.69,0.00020145,2]
[396226146,1764839446767,-436.48,0.00020145,2]
[396226147,1764839446776,-9999.99,0.00020145,2]
[396226148,1764839446784,-9999.99,0.00020145,2]
[396226149,1764839446794,-348.17,0.00020149,2]
[396226150,1764839446803,-4911.29924807,0.00020156,2]
[396226151,1764839446852,-683.88032897,0.00020178,2]
[396226152,1764839446861,-151.0,0.00020178,2]
[396226153,1764839446871,-791.87,0.00020187,2]
[396226154,1764839446881,-2832.3444381,0.00020233,2]